Workbook

Sheet KZN FTE vs Space
A1: TRESCON BUILDING (Block and Stack for New Campus)
A2: # | B2: Business Units | C2: Division | D2: Lead/Head | E2: Manager | F2: Total Staff | G2: Total Parking | H2: Affinity | I2: Stacking Order | J2: Type Seat Space Def A (Open Plan - 9m²) | K2: Type Seat Space Def B (Enclosed Office - 12m²) | L2: Type Seat Space Def C (Cubicle Office -10 m²) | M2: Meeting amenities (16 or 30 m²) | N2: Other | O2: Total | P2: Notes
A3: 1 | B3: Security Physical & Control Room | D3: Herman Smith/Rodney Bosman | E3: Cebokazi CJ Mafenuka | F3: 11 | G3: 8 | H3: Near Entrance | I3: Mid part - Corp Services | J3: =F3*9-18 -> 81 | L3: 10 | M3: 30 | N3: 36 | O3: =SUM(J3:N3) -> 157 | P3: 1 x Cub Office inside enclosed secure area, Changerooms for Security (2X rooms (Ladies & Gents)
A4: 2 | B4: Security Technical | D4: Herman Smith/Rodney Bosman | E4: Adrian Edward | F4: 6 | G4: 6 | H4: Near Entrance | I4: Low at the entrance | J4: 60 | N4: 16 | O4: 76 | P4: Roaming Staff at points (1x enclosed area with open plan desks and storage for security/IT equipment, charge stations)
A5: 3 | B5: Large Business & International KZN | D5: Venai Singh | E5: Yougeson Moodley | F5: 48 | G5: 42 | H5: Corporate Office Entrance 1st Floor | I5: Low at the entrance | J5: =F5*9-18 -> 414 | K5: 12 | L5: 10 | M5: 30 | N5: 18 | O5: 484 | P5: LB Ofices as per Look and Feel entrance split off from generallobby
A6: 4 | B6: HNWI | D6: Natasha Singh/Mohammed Desai | E6: Vicky Rajdew | F6: 2 | G6: 2 | H6: Part of LB | I6: Low at the entrance | J6: =F6*9 -> 18 | O6: 18 | P6: Part open plan within LB
A7: 5 | B7: Academy | D7: Maropeng Phineas Sebothoma/Rachabane Kope/Adelaide Morula | E7: Vikesh Bissoon | F7: 12 | G7: 11 | H7: Near Canteen / Eatery access to outdoor area | I7: At Conference Centre | J7: =F7*9-9 -> 99 | K7: 12 | M7: 30 | N7: 90 | O7: 231 | P7: Other: Library / training material and equipment (Training rooms?)
A8: 6 | B8: Enabling Operational Excellence | D8: Dan Zulu | E8: Simphiwe Mkhize | F8: 18 | G8: 9 | H8: Near Mngt | I8: Upper floors near Mngt | J8: =F8*9-9 -> 153 | K8: 12 | O8: 165
A9: 7 | B9: Management of Focused Taxpayer Segments | D9: Dan Zulu | E9: Nelly Desele | F9: 32 | G9: 31 | H9: Near Mngt | I9: Upper floors near Mngt | J9: =F9*9-27 -> 261 | K9: 12 | L9: 20 | M9: 16 | O9: 309 | P9: 1 Off, 2 x Cub off and 36 open plan
A10: 8 | B10: NOSE Operational Enablement | C10: National Operations | D10: Naresh Ramsumair/Lucinda Du Toit | E10: Nadia Goldstone | F10: 11 | G10: 9 | H10: Near Mngt | I10: Upper floors near Mngt | J10: =F10*9 -> 99 | O10: =J10+K10+M10+N10 -> 99 | P10: 10 Open plan
A11: 9 | B11: NOSE: Time Study Unit | D11: Naresh Ramsumair | E11: Sada Govender | F11: 3 | G11: 3 | H11: Near Mngt | I11: Upper floors near Mngt | J11: =F11*9-9 -> 18 | K11: 12 | O11: =SUM(J11:N11) -> 30 | P11: 1 x Off ; 2 x Open plan
A12: 10 | B12: NOSE - Quality Team | D12: Naresh Ramsumair | E12: Sada Govender | F12: 2 | G12: 2 | H12: Near Mngt | I12: Upper floors near Mngt | J12: =F12*9 -> 18 | O12: 18 | P12: 1 Open plan
A13: 11 | B13: NOC: Planning & Performance | D13: Naresh Ramsumair / Maryke Du Toit | E13: Malcolm Pillay | F13: 1 | G13: 1 | H13: Near Mngt | I13: Upper floors near Mngt | J13: =F13*9 -> 9 | O13: 9
A14: 12 | B14: Data Analytics | D14: Naresh Ramsumair / Patty Martins | E14: Shovana Matookchund | F14: 1 | G14: 1 | H14: Near Mngt | I14: Upper floors near Mngt | J14: 9 | O14: 9
A15: 13 | B15: Performance NOSE | D15: Donald Setati/Karusha Moodley | E15: Sdu Mkhwanazi | F15: 4 | G15: 4 | H15: Near Mngt | I15: Upper floors near Mngt | J15: =F15*9-9 -> 27 | L15: 10 | O15: 37 | P15: 3 x Open plan and 1 x Cub Off
A16: 14 | B16: Econometrics | D16: Gillian Manamela | E16: Ashnee Somary | F16: 1 | G16: 1 | H16: Near Corp Services | I16: Upper floors near Mngt | L16: 10 | O16: 10
A17: 15 | B17: Corp Serv. Communications | D17: Vernon Naidu | E17: Eloise Hendricks | F17: 1 | G17: 1 | H17: Near Corp Services | I17: Upper floors near Mngt | L17: 10 | O17: 10 | P17: Other: *Small closet per floor for cleaning equipment/supplies *Storage for maintenance equipment & supplies and *Storage for cleaning equipment & supplies *2 X dressing rooms (Ladies and Gents) *Storage area for Bulk shredder and recycling paper *General waste/buidling material etc. area
A18: 16 | B18: Product - Segment Architecture | D18: Warren Hero | E18: Rani Muller | F18: 1 | G18: 1 | H18: Near Corp Services | I18: Upper floors near Mngt | L18: 10 | O18: 10
A19: 17 | B19: CRE (Facilities) | D19: Herman Smith/Wadoed Abrahams | E19: Abongile Mkana | F19: 12 | G19: 3 | H19: Near Corp Services | I19: Mid part - Corp Services | J19: =F19*9-9 -> 99 | L19: 10 | N19: =(F19/2)*6 -> 36 | O19: 450 | P19: Not all FM staff get seating Th reduced size to 450m²
A20: 18 | B20: EOE - FS/NC | D20: Tozie Mazitshana | E20: Sthembile Mkhize | F20: 1 | G20: 1 | H20: Near Corp Services | I20: Mid part - Corp Services | L20: 10 | O20: 10 | P20: 1 x Cub off in enclosed area
A21: 19 | B21: EOE - Mpumalanga | D21: Thobile Petunia Mngomezulu | E21: Zamokuhle Makhathini / Kemmy Christian | F21: 2 | G21: 2 | H21: Near Corp Services | I21: Mid part - Corp Services | L21: 20 | O21: 20 | P21: 1 x Cub off in enclosed area
A22: 20 | B22: EPMO | D22: William Mpye/Ngwako Mahosi | E22: Malindi Xaba | F22: 1 | G22: 1 | H22: Near Corp Services | I22: Mid part - Corp Services | L22: 10 | O22: 10 | P22: 1 x Cub off in enclosed area
A23: 21 | B23: Service and Support | D23: Dan Zulu | E23: Andre van Wijk | F23: 6 | G23: 3 | H23: Near Corp Services | I23: Upper floors near Mngt | J23: =F23*9-9 -> 45 | L23: 10 | N23: 16 | O23: 71 | P23: Storage - equipment & materials for events
A24: 22 | B24: Finance | D24: Andre van Wijk | E24: Thami Hlongwa | F24: 16 | G24: 7 | H24: Near Corp Services | I24: Upper floors near Mngt | J24: =F24*9-9 -> 135 | L24: 10 | N24: 36 | O24: 181 | P24: Other: Storage for IT Assets & furniture for redistribution & disposal
A25: 23 | B25: Human Resources - People Management | D25: Dan Zulu | E25: Nondumiso Mdletse | F25: 13 | G25: 13 | H25: Near Corp Services | I25: Mid part - Corp Services | J25: =F25*9-36 -> 81 | K25: 12 | L25: 30 | M25: 16 | O25: 139
A26: 24 | B26: HR Customs - People Management | D26: Moses Sojane | E26: Sibusiso Hlongwa | F26: 1 | G26: 1 | H26: Near Corp Services | I26: Mid part - Corp Services | L26: 10 | O26: 10
A27: 25 | B27: Human Resources - HO | D27: Sobantu Ndlangalavu/Jabulile Khumalo | E27: Mbali Njapha | F27: 1 | G27: 1 | H27: Near Corp Services | I27: Mid part - Corp Services | J27: =F27*9 -> 9 | O27: 9 | P27: Meeting Room & 2 cubicles for 2 Unions
A28: 26 | B28: Employee Relations / Unions | D28: Sobantu Ndlangalavu/Andre Felaar | E28: Verona Heyneke | F28: 3 | G28: 3 | H28: Near Corp Services | I28: Mid part - Corp Services | K28: 24 | L28: 10 | M28: 30 | O28: 64 | P28: Family room for berieved families
A29: 27 | B29: Human Resources - Employee Services | D29: Peggy-May Boughan/Arrie Wybenga | E29: Cookie Mahadavu | F29: 3 | G29: 1 | H29: Near Corp Services | I29: Mid part - Corp Services | J29: =F29*9 -> 27 | M29: 16 | O29: 43 | P29: Interview rooms?
A30: 28 | B30: Human Resources - Recruitment | D30: Tebogo Phasoane/Nonhlanhla Mahlangu | E30: Zombuso B Wanda | F30: 3 | H30: Near Corp Services | I30: Mid part - Corp Services | J30: =F30*9 -> 27 | K30: 24 | M30: 16 | O30: 67
A31: 29 | B31: Human Resources - Vetting | D31: Den Dwane/Tumelo Gopane | E31: Subella Johannes Nhlapo | F31: 2 | G31: 0 | H31: Near Corp Services | I31: Mid part - Corp Services | J31: =F31*9 -> 18 | O31: 18
A32: 30 | B32: NOSE: CB & T | D32: Sobantu Ndlangalavu/Ashika Pillay | E32: Shireen Siva Subramonian | F32: 3 | G32: 3 | H32: Near Corp Services | I32: Mid part - Corp Services | K32: 12 | L32: 20 | O32: 32 | P32: Other: Storage for OHS / PPE equipment, supplies & other materials
A33: 31 | B33: OHS | D33: Joy Moja | E33: Nomthandazo Ntimane & Nompumelelo Myende | F33: 2 | H33: Near Corp Services | I33: Mid part - Corp Services | J33: =F33*9 -> 18 | N33: 16 | O33: 34 | P33: Other: Storage for records (TBC)
A34: 32 | B34: Procurement | D34: Dorah Kgutse/Mooshe Nkuna | E34: Lynda Samson | F34: 4 | G34: 4 | H34: Near Corp Services | I34: Mid part - Corp Services | J34: =F34*9 -> 36 | N34: 12 | O34: 48 | P34: Other: Server / IT equipment (enclosed office?)
A35: 33 | B35: IT- T&SD: Service operations and support | D35: Fanie Stofberg/Riana Potgieter | E35: Christie Bosman | F35: 8 | G35: 4 | H35: Mid Level support near IT Infrastructure | I35: Mid part - Corp Services | J35: =F35*9-9 -> 63 | K35: 12 | N35: 80 | O35: 155
A36: 34 | B36: Authorised Economic Operators | D36: Sithembile Magwaza/Deon Smith DBN | E36: Teboho Chalale | F36: 10 | G36: 7 | H36: Near Customs and Audit | I36: Above Customs Ops floor | J36: =F36*9-18 -> 72 | L36: 20 | O36: 92 | P36: Other: Storage for samples
A37: 35 | B37: Illicit Trade | D37: Kumaren Moodley | E37: Seelan Govender | F37: 17 | G37: 18 | H37: Near Customs and Investigative Units | I37: Above Customs Ops floor | J37: =F37*9-27 -> 126 | K37: 12 | L37: 20 | M37: 30 | N37: 36 | O37: 224 | P37: Other: Storage for legal records (TBC)
A38: 36 | B38: Legal (Revenue) | D38: Wayne Broughton | E38: Thulani Tshabalala | F38: 13 | G38: 11 | H38: Near Investigative Units | I38: Above Customs Ops floor | J38: =F38*9-18 -> 99 | K38: 12 | L38: 10 | M38: 30 | N38: 16 | O38: 167 | P38: Other: Storage for Dockets (head count includes Sandy Moodley?)
A39: 37 | B39: CI Standard Investigations | D39: Jacqueline Mgada | E39: Deepa Moodley | F39: 18 | G39: 17 | H39: Near Investigative Units | I39: Above Customs Ops floor | J39: =F39*9-27 -> 135 | K39: 12 | L39: 20 | M39: 16 | N39: 16 | O39: 199
A40: 38 | B40: CIT: Products Corporate | D40: Warren Hero/Andrew Wes | E40: Natasha Naicker | F40: 3 | G40: 3 | H40: Near Investigative Units | I40: Above Customs Ops floor | J40: =F40*9 -> 27 | O40: 27
A41: 39 | B41: Risk Profiling | D41: Xolani C. Mngoma | E41: Younus Mansoor | F41: 1 | G41: 1 | H41: Near Investigative Units | I41: Above Customs Ops floor | L41: 10 | O41: 10
A42: 40 | B42: CRU | D42: Omar Ganie | E42: Samuel Mofokeng | F42: 12 | G42: 9 | H42: Near Investigative Units | I42: Above Customs Ops floor | J42: =F42*9-18 -> 90 | K42: 12 | L42: 10 | O42: 112
A43: 41 | B43: Enterprise Data Management: Customs Portfolio - Risk Engines | D43: Omar Ganie | E43: Saleem Rajah | F43: 6 | G43: 5 | H43: Near Investigative Units | I43: Above Customs Ops floor | J43: =F43*9-18 -> 36 | K43: 12 | L43: 10 | O43: 58 | P43: Other: Lab area
A44: 42 | B44: Forensic Lab | D44: Bernard Kruger | E44: Donovan Govender | F44: 7 | G44: 7 | H44: Near Investigative Units | I44: Above Customs Ops floor | J44: =F44*9-9 -> 54 | L44: 10 | M44: 16 | N44: 30 | O44: 110 | P44: Other: Storage for confiscated goods/records
A45: 43 | B45: Illicit Economy (EUAT) | E45: Zibusisoziyeza Ngubane | F45: 10 | G45: 8 | H45: Near Investigative Units | I45: Above Customs Ops floor | J45: =F45*9-9 -> 81 | L45: 10 | M45: 16 | N45: 16 | O45: 123
A46: 44 | B46: Internal Investigation | D46: Godfrey Modise/Ntombekhaya Mguli | E46: Mbongeni Sibisi | F46: 8 | G46: 7 | H46: Near Investigative Units | I46: Above Customs Ops floor | J46: =F46*9-9 -> 63 | L46: 10 | M46: 16 | O46: 89
A47: 45 | B47: Specialised Audit (incl. Umhlanga) | D47: Desrae Lawrance | E47: Nonhlanhla Nxumalo | F47: 58 | G47: 46 | H47: Near Investigative Units | I47: Above Customs Ops floor | J47: =F47*9-54 -> 468 | K47: 12 | L47: 50 | M47: 16 | O47: 546 | P47: Other: Storage for confiscated goods/records
A48: 46 | B48: Tactical Analysis & Investigation (Criminal Case Selection) | D48: Pieter Posthumus | E48: Sandile Xhakaza | F48: 6 | G48: 4 | H48: Near Investigative Units | I48: Above Customs Ops floor | J48: =F48*9-9 -> 45 | K48: 12 | N48: 12 | O48: 69
A49: 47 | B49: Investigative Audit - Special Debt & Outstanding Returns | D49: Mergan Naidoo/Raquel Scheepers | E49: Leonie Swartz | F49: 18 | G49: 24 | H49: Near Legal, Lab, Investigative Units | I49: Above Customs Ops floor | J49: =F49*9 -> 162 | L49: 10 | M49: 30 | O49: 202
A50: 48 | B50: Specialised Debt | D50: Nthoki Macheke/Lucy Josephine Raphudi | E50: Cedrick Dhlomo | F50: 7 | H50: Near Legal, Lab, Investigative Units | I50: Above Customs Ops floor | J50: =F50*9 -> 63 | L50: 10 | O50: 73
A51: 49 | B51: Specialised Debt | D51: Collins Mabitsela/Themba Sitsibi | E51: Ashwin Singh | F51: 2 | G51: 1 | H51: Near Legal, Lab, Investigative Units | I51: Above Customs Ops floor | J51: =F51*9 -> 18 | O51: 18
A52: 50 | B52: Specialised Debt | D52: Sello Tiro | E52: Anesh Seethal | F52: 1 | G52: 1 | H52: Near Legal, Lab, Investigative Units | I52: Above Customs Ops floor | J52: =F52*9-9 -> 0 | L52: 10 | O52: 10
A53: 51 | B53: Specialised Debt | D53: Mergan Naidoo/Snoekie Naka | E53: Thobekile Msomi | F53: 1 | H53: Near Legal, Lab, Investigative Units | I53: Above Customs Ops floor | J53: =F53*9 -> 9 | O53: 9
A54: 52 | B54: Specialised Debt | D54: Mergan Naidoo/Suzette van Wyk | E54: Ebrahim Mansoor | F54: 6 | H54: Near Legal, Lab, Investigative Units | I54: Above Customs Ops floor | J54: =F54*9 -> 54 | L54: 10 | O54: 64
F55: =SUM(F3:F54) -> 439 | G55: =SUM(G3:G54) -> 348 | H55: =F55*9 -> 3951 | J55: =SUM(J3:J54) -> 3426 | K55: 228 | L55: 440 | M55: 354 | N55: 482 | O55: =SUM(O3:O52) -> 5162
B56: Add 15% Primary Circulation | J56: =SUM(J44:J55) -> 4443 | K56: =SUM(K44:K55) -> 252 | L56: =SUM(L44:L55) -> 560 | M56: =SUM(M44:M55) -> 448 | N56: =SUM(N44:N55) -> 540 | O56: =O55*0.15 -> 774.3
B57: Total Corp Space 1 | O57: =O55+O56 -> 5936.3
B58: Customs
A59: 1 | B59: Sea Modality | D59: Mohammad Ally | E59: Vischal Lalla | F59: 118 | H59: Grouped with Customs | I59: Low with Conf Centre Entrance | J59: =F59*9-36 -> 1026 | K59: 12 | L59: 30 | M59: 30 | N59: 60 | O59: =SUM(J59:N59) -> 1158 | P59: Storage - records and samples, Records & equipment, samples (Client Service & Inspections & Dog food & strong room for guns & ammunition)
A60: 2 | B60: Sea Modality Compliance | D60: Mohammad Ally | E60: Thembi Msani | F60: 37 | H60: Grouped with Customs | I60: Low with Conf Centre Entrance | J60: =F60*9-27 -> 306 | K60: 12 | L60: 20 | N60: 30 | O60: 368
A61: 3 | B61: Sea Modality MJOC/PJOC | D61: Mohammad Ally | E61: Barbara van Wyk | F61: 5 | H61: Grouped with Customs | I61: Low with Conf Centre Entrance | J61: =F61*9-9 -> 36 | L61: 10 | O61: 46 | P61: Records
A62: 4 | B62: Customs Litigation | D62: Joshua Levendal/Sogieba Hartley-Latiff | E62: Arthi Rooplal | F62: 4 | H62: Grouped with Customs but close to Spec Ops and Enf | I62: Low with Conf Centre Entrance | J62: =F62*9 -> 36 | N62: 16 | O62: 52 | P62: Samples
A63: 5 | B63: Customs: Special Operations & Enforcement | D63: Tebogo Ntuli | E63: Sarika Munien | F63: 20 | H63: Grouped with Customs and litigation | I63: Low with Conf Centre Entrance | J63: =F63*9-9 -> 171 | L63: 10 | N63: 16 | O63: 197 | P63: Diesel/fuel samples
A64: 6 | B64: Customs: Road Fuel Testing | D64: Tebogo Ntuli/Thulani Mpofu | F64: 3 | H64: Grouped with Customs and litigation | I64: Above Customs Ops floor | J64: =F64*9 -> 27 | N64: 16 | O64: 43
A65: 7 | B65: Customs Debt | D65: Abdul Maliek Ariefdien/Nazia Sader | E65: Fatima Peterson | F65: 7 | H65: Grouped with Customs close to legal | I65: Above Customs Ops floor | J65: =F65*9 -> 63 | O65: 63 | P65: Records
A66: 8 | B66: Excise Audit: Region | D66: Tebogo Ntuli/Phozisa Mbiko | E66: Patience Gumede | F66: 26 | H66: Grouped with Customs near Audit | I66: Above Customs Ops floor | J66: =F66*9-9 -> 225 | L66: 10 | N66: 16 | O66: 251 | P66: Records & samples
A67: 9 | B67: Excise Audit: PCA | D67: Tebogo Ntuli | E67: Bheki Sibiya | F67: 24 | H67: Grouped with Customs near Audit | I67: Above Customs Ops floor | J67: =F67*9-18 -> 198 | K67: 12 | L67: 10 | N67: 16 | O67: 236
A68: 10 | B68: Customs: (NTU) National Tagerting Units - Customs | D68: Patrick Tshikosi | E68: Sanelisiwe Dlamini | F68: 6 | H68: Grouped with Customs close to Spec Ops | I68: Above Customs Ops floor | J68: =F68*9-9 -> 45 | K68: 12 | O68: 57
A69: 11 | B69: Customs Quality | D69: Temogo Mashego | E69: Kumaran Pillay | F69: 1 | H69: Near Sea Modality MJOC | I69: Above Customs Ops floor | L69: 10 | N69: 16 | O69: 26
A70: 12 | B70: Customs Business Co-ordinating Unit | D70: Leon Potgieter/Walter Eyberg | E70: Gerrard Guaillard | F70: 1 | H70: Grouped with Customs close to Spec Ops | I70: Above Customs Ops floor | L70: 10 | O70: 10
F71: =SUM(F59:F70) -> 252 | H71: =F71*12 -> 3024 | J71: =SUM(J59:J70) -> 2133 | K71: 48 | L71: 110 | M71: 30 | N71: 186 | O71: =SUM(O59:O70) -> 2507
B72: Add 15% Primary Circulation | J72: =SUM(J60:J71) -> 3240 | K72: 84 | L72: 190 | M72: 30 | N72: 312 | O72: =O71*0.15 -> 376.05
B73: Total Customs Space | O73: =O71+O72 -> 2883.05
B74: Total Corp 2 (2 Totals added) | O74: =O73+O57 -> 8819.35
B75: Taxpayer Service Non Client Facing Units located at Corporate Regional Office
A76: 1 | B76: Taxpayer Service - CPO | D76: Dan Zulu | E76: Dan Zulu | F76: 3 | G76: 3 | H76: Exec Floor Upper areas | I76: Exec Floor mngt Floor | J76: =F76*9 -> 27 | K76: 24 | L76: 10 | M76: 30 | N76: 9 | O76: =SUM(J76:N76) -> 100
A77: 2 | B77: Taxpayer Service - CPO | D77: Dan Zulu | E77: Sifiso Mkhize | F77: 17 | G77: 9 | H77: Near Entrance | I77: Above Customs & LB below Corp Services Ops Floor | J77: =F77*9 -> 153 | M77: 30 | N77: 9 | O77: =SUM(J77:N77) -> 192 | P77: IT equipment, Mailbax & back scanning boxes
A78: 3 | B78: Voice Channels | D78: Dan Zulu | E78: Sifiso Mkhize | F78: 133 | G78: 92 | H78: Near Entrance | I78: Above Customs below Corp Services | J78: =F78*9-27 -> 1170 | K78: 12 | L78: 30 | O78: =SUM(J78:N78) -> 1212 | P78: MTU equipment and materials
A79: 4 | B79: Tax Base Broadening | D79: Dan Zulu | E79: Wandisa Madyibi | F79: 22 | G79: 20 | H79: Near Service Centre | I79: Above Customs below Corp Services | J79: =F79*9-9 -> 189 | K79: 12 | M79: 30 | N79: 18 | O79: =SUM(J79:N79) -> 249
A80: 5 | B80: TTE | D80: Rebone Gcabo/Thamsanqa Mabandla | E80: Nceba Bolana | F80: 3 | G80: 2 | H80: Near Corp Services | I80: Low/Above Conference centre | J80: =F80*9 -> 27 | O80: =SUM(J80:N80) -> 27
A81: 6 | B81: Taxpayer Verification | D81: Dan Zulu | E81: Senzo Nkuna | F81: 148 | G81: 107 | H81: Near Service Centre with lower affinity higher u in building | I81: Above Customs below Corp Services | J81: =F81*9-27 -> 1305 | K81: 12 | L81: 20 | O81: =SUM(J81:N81) -> 1337 | P81: IT equipment
A82: 7 | B82: Taxpayer Compliance - Temps | D82: Dan Zulu | E82: Eugene Buthelezi / Sinenhlanhla Simelane | F82: 120 | I82: Above Customs below Corp Services | J82: =F82*9-9 -> 1071 | L82: 10 | N82: 16 | O82: 1097
A83: 8 | B83: Taxpayer Compliance | D83: Dan Zulu | E83: Eugene Buthelezi | F83: 181 | G83: 102 | H83: Near Serice Centre lower in building than Investigative Units | I83: Above Customs below Corp Services | J83: =F83*9-27 -> 1602 | K83: 12 | L83: 20 | N83: 16 | O83: 1650
F84: =SUM(F77:F83) -> 624 | J84: =SUM(J77:J83) -> 5517 | K84: =SUM(K77:K83) -> 48 | L84: 80 | M84: 60 | N84: 59 | O84: =SUM(O76:O83) -> 5864
B85: Add 15% Primary Circulation | J85: =J84*0.15 -> 827.55 | K85: =K84*0.15 -> 7.2 | L85: =L84*0.15 -> 12 | M85: =M84*0.15 -> 9 | N85: =N84*0.15 -> 8.85 | O85: =SUM(J85:N85) -> 864.6
B86: Total Corp 3 | O86: =O84+O85 -> 6728.6
A88: 1 | B88: Newcastle - Other Business Units
A89: 2 | B89: NCC:Segments&Central | F89: 1
A90: 3 | B90: Debt Management | F90: 1
A91: 4 | B91: Specialised Audit | F91: 3
B92: Accounts Maintenance | F92: 1
A93: 1 | B93: Pietermaritzburg - Other Business Units
A94: 2 | B94: Criminal Investigation | F94: 7
A95: 3 | B95: Debt Management | F95: 28
A96: 4 | B96: NOSE | F96: 1
A97: 5 | B97: Finance | F97: 2
A98: 6 | B98: Compliance Audit | F98: 5
A99: 7 | B99: Anti Corruption | F99: 1
A100: 8 | B100: Specialised Audit | F100: 10
A101: 9 | B101: Customs | F101: 6
A102: Conference Centre | B102: HR | F102: 2
B103: Total Office Areas (1 + 2 + 3) | O103: =O74+O86 -> 15547.95
P105: Mailbax & back scanning boxes
A106: 1 | B106: Entrance Lobbies and Conference Entrances Part of Primary Circulation But due to additionbal flow 60m Sq.m. Allowed | E106: None | H106: Entrance to Building | I106: Low/ at Conference centre | N106: 60 | O106: =SUM(J106:N106) -> 60
A107: 2 | B107: Lower ground Conference Facilities | E107: Sifiso Mkhize | F107: 5 | G107: 92 | H107: Near Entrance | I107: Low/ at Conference centre | N107: 396 | O107: =SUM(J107:N107) -> 396 | P107: MTU equipment and materials
A108: 3 | B108: Lower basement 2 Services and Waste Areas | D108: Dan Zulu | E108: Wandisa Madyibi | F108: 6 | G108: 20 | H108: Near Service Centre | I108: Low/ at Conference centre | N108: 250 | O108: =SUM(J108:N108) -> 250
F109: =SUM(F106:F108) -> 11 | O109: =SUM(O106:O108) -> 706
B110: Add 15% Primary Circulation | J110: =J109*0.15 -> 0.00 | K110: 0.00 | L110: 0.00 | M110: 0.00 | N110: 0.00 | O110: 105.9
O111: =O110+O109 -> 811.9
B112: Total Building calculated at 9m² per person. | O112: =F113*9 -> 11934.00
B113: Total Building including nr of offices and Meeting Facilities | E113: Staff No | F113: =F109+F84+F71+F55 -> 1326 | O113: =O111+O86+O74 -> 16359.85 | P113: Area to used to calculate Project fit-out costs
B114: Add GA's roaming having change rooms and amenities only See space in parking areas | F114: 16
B116: Add Building construction areas | Q116: =J129-O113 -> -41.95
A117: Fl No. | B117: Stacking order | D117: Floor Plate Size m² | E117: Business Stacking Order | F117: Add Ablutions m² | G117: Add Kitchens | H117: Add Cleaner Store and Change Roms | I117: Add Services DB, IT etc | J117: Total Floor Plate | K117: Variance | M117: Floor size less Primary Cisrculation | N117: Less Meeting rm's etc | O117: Approx Nr of Staff per Floor
O118: =O119+O120+O121+O122+O123+O124+O125+O126+O127 -> 1328 | P118: Total Staff plus add the Conference staff of 11
A119: 7 | B119: Top Floor (Exec and Buss Snr Management) | D119: 1620 | E119: Exec and Business Management | F119: 55.6 | G119: 12 | H119: 15 | I119: 4 | J119: =SUM(D119:I119) -> 1706.6 | K119: =J119-D119 -> 86.6 | M119: 1408.00 | N119: =M119-120 -> 1288 | O119: =N119/9 -> 143
A120: 6 | B120: Corporate type offices spaces | D120: 1620 | E120: Case Selection/ Specialised Audit/ Debt/ CI / Legal | F120: 55.6 | G120: 12 | H120: 15 | I120: 4 | J120: 1706.6 | K120: 86.6 | M120: 1408.00 | N120: =M120-60 -> 1348 | O120: 150
A121: 5 | B121: Corporate type offices spaces | D121: 1620 | E121: Audit / Enforcement BU's | F121: 55.6 | G121: 12 | H121: 15 | I121: 4 | J121: 1706.6 | K121: 86.6 | M121: 1408.00 | N121: =M121-60 -> 1348 | O121: 150
A122: 4 | B122: Operational Offices Enforcement | D122: 1620 | E122: Above and Forensic Lab/ Investigations etc | F122: 55.6 | G122: 12 | H122: 15 | I122: 4 | J122: 1706.6 | K122: 86.6 | M122: 1408.00 | N122: =M122-120 -> 1288 | O122: 143
A123: 3 | B123: Corporate type offices spaces | D123: 1620 | E123: Business Operations and Corporate Services/ HR/ Finanace/ NOE/ Other | F123: 55.6 | G123: 12 | H123: 15 | I123: 4 | J123: 1706.6 | K123: 86.6 | M123: 1408.00 | N123: =M123-60 -> 1348 | O123: 150
A124: 2 | B124: Customs Operations | D124: 1620 | E124: Customs Enforcement/ Case selection / Investigations | F124: 55.6 | G124: 12 | H124: 15 | I124: 4 | J124: 1706.6 | K124: 86.6 | M124: 1408.00 | N124: =M124-60 -> 1348 | O124: 150
A125: 2 | B125: LBI | D125: 1620 | E125: Operational Office | F125: 55.6 | G125: 12 | H125: 15 | I125: 4 | J125: 1706.6 | K125: 86.6 | M125: 1408.00 | N125: =M125-60 -> 1348 | O125: 150
A126: 1 | B126: Customs Sea Modality Client Area/ LBHWI / Taxpayer Appointment Area | D126: 1620 | E126: Customs Client Centre/ Debt Client Centre/ BU Operational Offices/ Voice channels | F126: 55.6 | G126: 12 | H126: 15 | I126: 4 | J126: 1706.6 | K126: 86.6 | M126: 1408.00 | N126: =M125-120 -> 1288 | O126: 143
A127: G | B127: Entrances Lobbies Conf Area & Sandwich bar Convenience store serevices | D127: 1680 | E127: LBHWI Centre/ Operational Client Centre | F127: 55.6 | G127: 12 | H127: 15 | I127: 4 | J127: 1766.6 | K127: 86.6 | M127: 1468 | N127: =N125 -> 1348 | O127: 150
A128: -1 | B128: Lower Floor Conference 2 Area) | D128: =O111 -> 811.9 | E128: Operational Office and Conference | F128: 55.6 | G128: 12 | H128: 15 | I128: 4 | J128: 898.5 | K128: 86.6
J129: =SUM(J119:J128) -> 16317.9 | K129: =SUM(K119:K128) -> 866
A131: -2 | B131: Parking | D131: 1875 | G131: 12 | H131: 30 | I131: 4 | J131: =SUM(D131:I131) -> 1921
A132: -3 | B132: Parking | D132: 1875 | G132: 12 | J132: =SUM(D132:I132) -> 1887
A133: -4 | B133: Parking | D133: 1875 | G133: 12 | J133: =SUM(D133:I133) -> 1887
I134: =SUM(J131:J133) -> 5695 | J134: =J133+J132+J131 -> 5695
B135: Total bldg indicative construction area | D135: =J134+J129 -> 22012.9
A184: 2 | B184: Business Units | C184: Division | D184: Lead/Head | E184: Staff Member | F184: Total Staff | G184: Total Parking | H184: Affinity | I184: Stacking Order | J184: Type Seat Space Def A (Open Plan - 9m²) | K184: Type Seat Space Def B (Enclosed Office - 12m²) | L184: Type Seat Space Def C (Cubicle Office -10 m²) | M184: Meeting amenities (16 or 30 m²) | N184: Other | O184: Total
A185: 3 | B185: TTE | D185: Cyril Mvinjelwa | E185: Amanda Hlophe | F185: Incl. TTE
A186: 4 | B186: NOSE: Operation Enablement | D186: Naresh Singh / Lucinda Du Toit | E186: Amelia Thomas | F186: Incl. NOSE OE
A187: 5 | B187: NOSE: Operation Enablement | D187: Naresh Ramsumair/Lucinda Du Toit | E187: Asha Santhilal | F187: Incl. NOSE OE
A188: 6 | B188: NOSE: CB & T | D188: Ashika Pillay | E188: Ashika Pillay | F188: Incl. CB & T
A189: 7 | B189: LBI | D189: Venai Singh | E189: Ashitha Singh | F189: Incl. in LBI
A190: 8 | B190: Econometrics | D190: Gillian Manamela | E190: Ashnee Somary | F190: 1 | H190: Functional Specialist
A191: 9 | B191: LBI | D191: Natashia Singh | E191: Basil Chetty | F191: Incl. LBI
A192: 10 | B192: Corp Serv. Communications | D192: Vernon Naidu | E192: Eloise Hendricks | F192: 1 | H192: Specialist
A193: 11 | B193: Legal | D193: Mohamed Latiff | E193: Harisha Savuck | F193: Incl. in Legal
A194: 12 | B194: EOE - Mpumalanga | D194: Thobile Pertunia Mngomezulu | E194: Kemmy Christian | F194: Incl. in Mpumalanga
A195: 13 | B195: CRU | D195: Samuel Mofokeng | E195: Lindani Gasa | F195: Incl. CRU
A196: 14 | B196: NOC: Planning & Performance | D196: Naresh Ramsumair / Maryke Du Toit | E196: Malcolm Pillay | F196: 1 | H196: OPS Specialist
A197: 15 | B197: LBI | D197: Venai Singh | E197: Mike Schultz | F197: Incl. LBI
A198: 16 | B198: Management of Focused Taxpayer Segments | D198: Dan Zulu | E198: Nelly Desele | F198: Incl. MFTS
A199: 17 | B199: Product - Segment Architecture | D199: Warren Hero | E199: Rani Muller | F199: 1 | H199: Snr Specialist
A200: 18 | B200: LBI | D200: Natashia Singh | E200: Shalona Singh | F200: Incl. LBI
A201: 19 | B201: Data Analytics | D201: Naresh Ramsumair / Patty Martins | E201: Shovana Matookchund | F201: 1 | H201: Specialist
A202: 20 | B202: Enabling Operational Excellence | D202: Dan Zulu | E202: Simhiwe Mkhize | F202: Incl. EOE
A203: 21 | B203: Enabling Operational Excellence | D203: Dan Zulu | E203: Thami Khumalo | F203: Incl. EOE
A204: 22 | B204: AEO: Finance | D204: Rae Vivier | E204: Thembi Khuzwayo | F204: Incl. AEO | H204: OPS Manager
A205: 23 | B205: Finance | D205: Dan Zulu | E205: Usha Lutchman | F205: Incl. Finance
A206: 24 | B206: NOSE: Operation Enablement | D206: Naresh Ramsumair/Lucinda Du Toit | E206: Vaneshree Remona Naidoo | F206: Incl. in NOE
B207: Risk Profiling | D207: Xolani C. Mngoma | E207: Younus Mansoor | F207: 1 | H207: Snr Officer
B208: Enabling Operational Excellence | D208: Dan Zulu | E208: Zahir Sayed | F208: Incl. in EOE

Sheet Space Matrix
A1: Divisions | B1: Team Member (Gr1-5) | C1: Ops Manager (G6) | D1: Manager (G7) | E1: Leads | F1: Business Area Managers | G1: Enclosed Area | H1: PWD | K1: Staff Requirements | L1: Campus Branch (1) | M1: Branch 2 | N1: Branch 3 | O1: Notes
A2: NOSE Operational Enablement | K2: Service Consultants | O2: Servicing taxpayers Face-2-face at a counter
A3: Taxpayer Service- CPO | K3: Service Consultants | O3: Servicing taxpayers virtually (Seated at Back Office)
A4: Voice Channels | K4: Ops Manager | O4: Front Office
A5: Performance NOSE | K5: Ops Manager | O5: Back Office
A6: Security | K6: Branch Manager
A7: Security Control Room Taxpayer Service- CPO | K7: PA
A8: Large Business & International KZN | K8: GA
A9: Tax Base Broadening
A10: IT- T&SD: Service operations and support
A11: NOSE: Time Study Unit
A12: Illicit Trade
A13: Authorised Economic Operators
A14: Forensic Lab
A15: Legal (Revenue)
A16: Investigative Audit - Special Debt & Outstanding Returns
A17: Illicit Economy (EUAT)
A18: Internal Investigation
A19: CI Standard Investigations
A20: Taxpayer Verification
A21: Specialised Audit
A22: NOSE: CB & T
A23: Taxpayer Compliance
A24: Taxpayer Compliance - Temps
A25: Management of Focused Taxpayer Segments
A26: Enabling Operational Excellence
A27: NOSE - Quality Team
A28: Human Resources (HR)
A29: Enterprise Data Management: Customs Portfolio - Risk Engines
A30: CRU
A31: Employee Relations / Unions
A32: TTE
A33: Finance
A34: CRE (Facilities)
A35: Procurement
A36: Tactical Analysis & Investigation (Criminal Case Selection)
A37: Academy
A38: Service and Support
A39: EOE - FS/NC
A40: EOE - Mpumalanga
A41: HNWI
A42: EPMO
A43: HR (HO)
A44: Procurement - Governance & Risk
A45: CIT: Products Corporate
A46: Tax Dispute
A47: Procurement HO
A48: HR Vetting
A49: Sea Modality
A50: Sea Modality Compliance
A51: Sea Modality MJOC/PJOC
A52: Customs Litigation
A53: Customs: Special Operations & Enforcement
A54: Customs Debt
A55: Excise Audit: Region
A56: Excise Audit: PCA
A57: Customs: (NTU) National Targeting Units - Customs
A58: Customs Quality
A59: Customs Business Co-ordinating Unit
